fUST/lending_fUST_20250808
["ID","MTS","AMOUNT","RATE_DAILY","PERIOD"]
[377941640,1754620243024,-160.0,0.00024,7]
[377941642,1754620243034,-160.0,0.00024,7]
[377941644,1754620243043,-842.78739015,0.00024,7]
[377941646,1754620243052,-160.0,0.00024,7]
[377941648,1754620243062,-527.68033864,0.00024,7]
[377941650,1754620243076,-189.08233475,0.00024007,2]
[377941652,1754620243086,-151.0,0.00024008,7]
[377941654,1754620243095,-239.813416,0.00024012,8]
[377941655,1754620243103,-877.1,0.00024022,3]
[377941657,1754620243113,-239.813416,0.0002405,8]
[377941659,1754620243123,-1500.0,0.00024053,2]
[377941661,1754620243133,-706.96255487,0.00024061,2]
[377941663,1754620243142,-500.0,0.00024081,2]
[377941665,1754620243153,-500.0,0.00024081,2]
[377941667,1754620243167,-501.43415022,0.00024081,2]
[377941670,1754620243177,-500.0,0.00024081,2]
[377941671,1754620243187,-500.0,0.00024081,2]
[377941673,1754620243196,-500.0,0.00024081,2]
[377941675,1754620243206,-500.0,0.00024081,2]
[377941678,1754620243215,-500.0,0.00024081,2]
[377941679,1754620243224,-501.13655458,0.00024081,2]
[377941681,1754620243234,-500.0,0.00024081,2]
[377941683,1754620243243,-500.0,0.00024081,2]
[377941685,1754620243252,-500.0,0.00024081,2]
[377941687,1754620243261,-500.0,0.00024081,2]
[377941689,1754620243271,-500.0,0.00024081,2]
[377941691,1754620243280,-500.0,0.00024081,2]
[377941693,1754620243289,-500.0,0.00024081,2]
[377941695,1754620243299,-500.0,0.00024081,2]
[377941719,1754620243516,-553.38782005,0.00024081,2]
[377941721,1754620243526,-500.0,0.00024081,2]
[377941723,1754620243535,-500.0,0.00024081,2]
[377941725,1754620243545,-505.60523896,0.00024081,2]
[377941727,1754620243555,-151.0,0.000241,9]
[377941729,1754620243564,-460.0,0.00024106,2]
[377941731,1754620243574,-460.0,0.00024107,2]
[377941733,1754620243584,-579.34,0.00024107,2]
[377941735,1754620243593,-514.01,0.00024107,2]
[377941737,1754620243602,-723.99,0.00024107,2]
[377941739,1754620243612,-460.0,0.00024107,2]
[377941741,1754620243622,-960.88,0.00024107,2]
[377941743,1754620243632,-596.91,0.00024107,2]
[377941745,1754620243642,-460.0,0.00024107,2]
[377941747,1754620243651,-6043.53,0.00024107,2]
[377941749,1754620243660,-460.0,0.00024107,2]
[377941751,1754620243669,-151.0,0.00024107,7]
[377941753,1754620243678,-151.0,0.00024107,7]
[377941755,1754620243688,-151.0,0.00024107,7]
[377941757,1754620243697,-460.0,0.00024107,2]
[377941759,1754620243707,-151.0,0.00024107,7]
[377941761,1754620243716,-460.0,0.00024107,2]
[377941763,1754620243725,-160.46701,0.00024107,7]
[377941765,1754620243734,-151.0,0.00024107,7]
[377941767,1754620243743,-151.0,0.00024107,7]
[377941769,1754620243752,-460.0,0.00024107,2]
[377941771,1754620243762,-787.14,0.00024107,2]
[377941773,1754620243771,-961.03,0.00024108,2]
[377941775,1754620243780,-515.21,0.00024108,2]
[377941777,1754620243790,-157.38158005,0.00024108,2]
[377941779,1754620243799,-528.13,0.00024108,2]
[377941781,1754620243808,-460.0,0.00024108,2]
[377941783,1754620243817,-730.95,0.00024108,2]
[377941785,1754620243827,-625.55,0.00024108,2]
[377941787,1754620243836,-460.0,0.00024108,2]
[377941789,1754620243845,-151.0,0.00024109,7]
[377941791,1754620243856,-151.0,0.00024109,7]
[377941793,1754620243865,-151.0,0.00024109,7]
[377941796,1754620243875,-151.0,0.00024109,7]
[377941798,1754620243884,-460.0,0.00024109,2]
[377941799,1754620243893,-150.59680682,0.00024233,7]
[377941801,1754620243904,-360.0,0.00024254,2]
[377941803,1754620243913,-151.0,0.000243,7]
[377941805,1754620243923,-215.32,0.00024334,2]
[377941807,1754620243931,-1244.0,0.00024337,7]
[377941809,1754620243940,-151.0,0.00024338,7]
[377941811,1754620243949,-151.0,0.00024338,7]
[377941813,1754620243959,-151.0,0.00024338,7]
[377941815,1754620243968,-500.0,0.0002434,2]
[377941817,1754620243978,-160.0,0.0002434,7]
[377941819,1754620243987,-231.87430077,0.0002434,7]
[377941821,1754620243996,-160.0,0.0002434,7]
[377941823,1754620244005,-312.16666667,0.0002434,7]
[377941825,1754620244014,-626.80565022,0.00024357,2]
[377941827,1754620244023,-877.1,0.00024369,3]
[377941829,1754620244033,-460.0,0.0002438,2]
[377941831,1754620244042,-636.0,0.00024381,2]
[377941833,1754620244051,-972.698,0.00024381,2]
[377941835,1754620244061,-2149.0,0.00024381,2]
[377941837,1754620244072,-460.0,0.00024381,2]
[377941839,1754620244081,-579.34,0.00024381,2]
[377941841,1754620244091,-514.01,0.00024381,2]
[377941843,1754620244099,-151.0,0.00024381,7]
[377941845,1754620244108,-152.19635,0.00024381,7]
[377941847,1754620244118,-151.0,0.00024381,7]
[377941849,1754620244127,-723.99,0.00024381,2]
[377941851,1754620244138,-460.0,0.00024381,2]
[377941853,1754620244149,-151.0,0.00024381,7]
[377941854,1754620244158,-960.88,0.00024381,2]
[377941856,1754620244170,-596.91,0.00024381,2]
[377941858,1754620244179,-151.0,0.00024381,7]
[377941860,1754620244189,-151.0,0.00024381,7]
[377941862,1754620244198,-151.0,0.00024381,7]
[377941864,1754620244207,-460.0,0.00024381,2]
[377941866,1754620244216,-6043.53,0.00024381,2]
[377941868,1754620244225,-460.0,0.00024381,2]
[377941870,1754620244234,-460.0,0.00024381,2]
[377941872,1754620244243,-460.0,0.00024381,2]
[377941874,1754620244255,-460.0,0.00024381,2]
[377941876,1754620244264,-787.14,0.00024381,2]
[377941878,1754620244273,-961.03,0.00024382,2]
[377941880,1754620244282,-515.21,0.00024382,2]
[377941882,1754620244292,-528.13,0.00024382,2]
[377941884,1754620244301,-460.0,0.00024382,2]
[377941886,1754620244310,-151.0,0.00024382,7]
[377941888,1754620244319,-151.245391,0.00024382,7]
[377941890,1754620244328,-730.95,0.00024382,2]
[377941892,1754620244337,-625.55,0.00024382,2]
[377941894,1754620244346,-151.0,0.00024382,7]
[377941896,1754620244355,-152.561859,0.00024382,7]
[377941898,1754620244365,-212.215634,0.00024382,7]
[377941900,1754620244375,-212.215634,0.00024382,7]
[377941902,1754620244388,-151.557369,0.00024382,7]
[377941904,1754620244400,-151.0,0.00024382,7]
[377941905,1754620244408,-151.0,0.00024382,7]
[377941906,1754620244418,-601.425085,0.00024382,7]
[377941907,1754620244427,-601.425085,0.00024382,7]
[377941908,1754620244436,-460.0,0.00024382,2]
[377941909,1754620244445,-151.0,0.00024382,7]
[377941910,1754620244454,-1304.521677,0.00024382,7]
[377941911,1754620244464,-1304.521677,0.00024382,7]
[377941912,1754620244473,-460.0,0.00024383,2]
[377941913,1754620244482,-151.0,0.000244,6]
[377941914,1754620244491,-239.813416,0.00024422,15]
[377941915,1754620244500,-5888.0,0.00024427,7]
[377941916,1754620244509,-151.0,0.00024427,7]
[377941917,1754620244518,-1244.0,0.0002444,2]
[377941918,1754620244528,-14760.58,0.000245,2]
[377941919,1754620244537,-2157.76,0.000245,2]
[377941920,1754620244546,-151.0,0.000245,7]
[377941921,1754620244555,-659.23009075,0.000245,2]
[377941922,1754620244565,-153.186279,0.000245,7]
[377941923,1754620244574,-151.0,0.000245,7]
[377941924,1754620244584,-227.107024,0.000245,7]
[377941925,1754620244593,-151.0,0.000245,7]
[377941926,1754620244602,-151.0,0.000245,7]
[377941927,1754620244611,-151.0,0.000245,7]
[377941928,1754620244620,-759.15,0.00024506,7]
[377941929,1754620244630,-179.1374617,0.00024506,7]
[377941930,1754620244639,-151.0,0.00024506,2]
[377941931,1754620244649,-1511.82032206,0.00024516,2]
[377941932,1754620244658,-2000.0,0.00024516,2]
[377941933,1754620244667,-1244.0,0.00024539,2]
[377941934,1754620244676,-239.813416,0.00024539,15]
[377941935,1754620244686,-7802.99941962,0.00024556,3]
[377941936,1754620244695,-160.0,0.0002456,3]
[377941937,1754620244705,-231.87430077,0.0002456,3]
[377941938,1754620244714,-160.0,0.0002456,3]
[377941939,1754620244723,-312.16666667,0.0002456,3]
[377941940,1754620244733,-160.0,0.0002456,3]
[377941941,1754620244743,-216.5651299,0.0002456,3]
[377941942,1754620244751,-12663.41139009,0.0002456,3]
[377941943,1754620244761,-160.0,0.0002456,3]
[377941944,1754620244770,-200.0,0.0002456,10]
[377941945,1754620244780,-160.0,0.0002456,3]
[377941946,1754620244789,-842.78739015,0.0002456,3]
[377941947,1754620244799,-160.0,0.0002456,3]
[377941948,1754620244808,-527.68033864,0.0002456,3]
[377941949,1754620244817,-2000.0,0.000246,10]
[377941950,1754620244826,-2000.0,0.000246,15]
[377941951,1754620244835,-151.0,0.000246,7]
[377941952,1754620244845,-301.69785793,0.000246,2]
[377941953,1754620244854,-2000.0,0.00024601,2]
[377941954,1754620244864,-151.3773,0.00024626,2]
[377941955,1754620244873,-1006.52330765,0.00024629,2]
[377941956,1754620244883,-1000.0,0.00024629,2]
[377941957,1754620244893,-1000.0,0.00024629,2]
[377941958,1754620244904,-1000.0,0.00024629,2]
[377941959,1754620244913,-1000.0,0.00024629,2]
[377941961,1754620244923,-1041.56782758,0.00024629,2]
[377941962,1754620244932,-1000.0,0.00024629,2]
[377941963,1754620244941,-1000.0,0.00024629,2]
[377941964,1754620244951,-827.41121205,0.00024629,2]
[377941965,1754620244961,-761.99561543,0.00024629,2]
[377941966,1754620244970,-502.10972145,0.00024629,2]
[377941968,1754620244979,-1000.0,0.00024629,2]
[377941970,1754620244988,-1009.71586117,0.00024629,2]
[377941971,1754620244997,-1000.0,0.00024629,2]
[377941972,1754620245006,-501.37428273,0.00024629,2]
[377941973,1754620245015,-1000.0,0.00024629,2]
[377941974,1754620245024,-151.0,0.00024648,7]
[377941975,1754620245033,-151.35325,0.00024648,7]
[377941976,1754620245043,-151.0,0.00024648,7]
[377941977,1754620245052,-151.0,0.00024648,7]
[377941978,1754620245061,-160.54832287,0.00024649,2]
[377941979,1754620245073,-2247.22205878,0.0002465,2]
[377941980,1754620245082,-43352.11174022,0.0002465,2]
[377941981,1754620245189,-567.51075259,0.0002465,2]
[377941982,1754620245343,-1355.18,0.00021917,2]
[377941983,1754620245353,-1355.18,0.00022191,2]
[377941984,1754620245363,-1355.18,0.00022465,2]
[377941985,1754620245372,-151.0,0.00023137,2]
[377941986,1754620245381,-256.889753,0.00024107,7]
[377941987,1754620245391,-256.889753,0.000245,7]
[377941988,1754620245401,-10331.25555158,0.0002465,2]
[377942141,1754620739735,162.533994,0.00013699,2]
[377942174,1754621370093,24900.0,0.00021298,2]
[377942176,1754621426061,291.2237477,0.0003192,120]
[377942376,1754621438518,-672.41006772,0.00021816,2]
[377942379,1754621438530,-525.62621275,0.00021816,2]
[377942689,1754621443589,-1.96371953,0.00021816,2]
[377942690,1754621443599,-7496.0922983,0.00021817,2]
[377942691,1754621443695,-519.47999996,0.00021817,2]
[377942692,1754621443750,-7990.10637397,0.00021817,2]
[377942693,1754621443762,-289.54641168,0.00021817,2]
[377942721,1754621636713,237.6771022,0.00021097,2]
[377942722,1754621639309,288.1212822,0.00019717,2]
[377942724,1754621663285,204474.64870083,0.0002489,30]
[377942725,1754621678638,521.25309405,0.00021259,2]
[377942733,1754621780217,168.513237,0.00013699,2]
[377942736,1754621818568,3286.0,0.00030136,120]
[377942738,1754621913519,161.4319093,0.00021476,2]
[377942743,1754621980506,208.50123762,0.00021259,2]
[377942748,1754622160264,157.38852573,0.00031921,30]
[377942749,1754622181076,210.257106,0.00021112,2]
[377942799,1754622602666,3519.68525773,0.00021154,2]
[377942801,1754622612569,753.75,0.00025,30]
[377942809,1754622631846,-260.62654702,0.00021522,2]
[377942811,1754622631855,-181.60193922,0.00021577,2]
[377942813,1754622631865,-506.0,0.00021916,2]
[377942815,1754622631874,-300.0,0.00021916,2]
[377942817,1754622631883,-1200.0,0.00021916,2]
[377942819,1754622631893,-438.26114296,0.00021917,2]
[377942821,1754622631904,-472.58708224,0.00021917,2]
[377942823,1754622631914,-466.54347167,0.00021917,2]
[377942825,1754622631923,-460.0,0.00021917,2]
[377942827,1754622631933,-460.0,0.00021917,2]
[377942829,1754622631943,-476.60141921,0.00021917,2]
[377942831,1754622631953,-341.21025371,0.00021917,2]
[377943539,1754622639884,-118.78974629,0.00021917,2]
[377943540,1754622639896,-840.77,0.00021917,2]
[377943542,1754622639906,-460.0,0.00021917,2]
[377943543,1754622639915,-460.0,0.00021917,2]
[377943545,1754622639924,-1185.78,0.00021917,2]
[377943547,1754622639934,-587.62,0.00022,2]
[377943548,1754622639943,-464.25359799,0.00022007,2]
[377943550,1754622639953,-1548.89678201,0.00022087,2]
[377943551,1754622639963,-661.82,0.00022186,2]
[377943553,1754622639972,-460.0,0.00022186,2]
[377943555,1754622639982,-522.3,0.00022186,2]
[377943556,1754622639991,-5288.09,0.00022186,2]
[377943558,1754622640000,-169.21974291,0.00022186,2]
[377943560,1754622640011,-460.0,0.00022186,2]
[377943561,1754622640021,-471.00255564,0.00022186,2]
[377943563,1754622640030,-460.0,0.00022186,2]
[377943564,1754622640040,-460.0,0.00022186,2]
[377943566,1754622640049,-460.0,0.00022186,2]
[377943568,1754622640058,-460.0,0.00022186,2]
[377943569,1754622640067,-460.0,0.00022187,2]
[377943571,1754622640076,-485.25357674,0.00022187,2]
[377943573,1754622640085,-954.68,0.00022187,2]
[377943574,1754622640095,-483.10191581,0.00022187,2]
[377943576,1754622640103,-484.07267412,0.00022187,2]
[377943577,1754622640113,-525.91,0.00022187,2]
[377943579,1754622640122,-466.16525084,0.00022187,2]
[377943581,1754622640132,-460.0,0.00022187,2]
[377943582,1754622640142,-460.0,0.00022187,2]
[377943584,1754622640152,-460.0,0.00022187,2]
[377943586,1754622640161,-460.0,0.00022187,2]
[377943587,1754622640171,-466.34632607,0.00022187,2]
[377943589,1754622640180,-460.0,0.00022187,2]
[377943590,1754622640189,-479.68,0.00022187,2]
[377943592,1754622640198,-460.0,0.00022187,2]
[377943594,1754622640207,-474.16926256,0.00022187,2]
[377943595,1754622640216,-460.0,0.00022187,2]
[377943597,1754622640226,-477.52995995,0.00022187,2]
[377943599,1754622640236,-460.0,0.00022187,2]
[377943600,1754622640245,-460.0,0.00022187,2]
[377943602,1754622640254,-460.0,0.00022187,2]
[377943603,1754622640264,-471.86548356,0.00022187,2]
[377943605,1754622640273,-460.0,0.00022187,2]
[377943607,1754622640282,-575.32,0.00022187,2]
[377943608,1754622640291,-460.0,0.00022187,2]
[377943610,1754622640301,-460.0,0.00022187,2]
[377943612,1754622640310,-460.0,0.00022187,2]
[377943613,1754622640319,-688.74,0.00022187,2]
[377943615,1754622640328,-531.27,0.0002219,2]
[377943616,1754622640337,-460.0,0.00022191,2]
[377943618,1754622640346,-304.4433236,0.00022191,2]
[377943620,1754622640355,-460.0,0.00022191,2]
[377943621,1754622640364,-840.77,0.00022191,2]
[377943623,1754622640374,-460.0,0.00022191,2]
[377943624,1754622640382,-460.0,0.00022191,2]
[377943626,1754622640393,-1185.78,0.00022191,2]
[377943628,1754622640402,-559.93001924,0.00022264,2]
[377943629,1754622640411,-500.0,0.00022264,2]
[377943631,1754622640420,-500.0,0.00022264,2]
[377943633,1754622640429,-500.0,0.00022264,2]
[377943634,1754622640438,-503.74633771,0.00022264,2]
[377943636,1754622640447,-237.67182041,0.00022264,2]
[377943638,1754622640459,-494.58481454,0.00022264,2]
[377943639,1754622640468,-500.0,0.00022264,2]
[377943641,1754622640478,-500.0,0.00022264,2]
[377943643,1754622640488,-500.0,0.00022264,2]
[377943644,1754622640497,-500.0,0.00022264,2]
[377943646,1754622640507,-300.0,0.00022264,2]
[377943648,1754622640516,-500.0,0.00022264,2]
[377943649,1754622640525,-641.67049477,0.00022264,2]
[377943651,1754622640534,-250.0,0.00022305,2]
[377943652,1754622640544,-500.0,0.00022306,2]
[377943654,1754622640553,-460.0,0.00022359,2]
[377943656,1754622640562,-661.82,0.0002246,2]
[377943657,1754622640571,-279.36066523,0.0002246,2]
[377943659,1754622640580,-522.3,0.0002246,2]
[377943661,1754622640590,-5288.09,0.0002246,2]
[377943662,1754622640599,-460.0,0.0002246,2]
[377943664,1754622640607,-493.67760243,0.0002246,2]
[377943665,1754622640616,-469.44,0.0002246,2]
[377943667,1754622640625,-460.0,0.0002246,2]
[377943669,1754622640634,-484.71453972,0.00022461,2]
[377943670,1754622640647,-954.68,0.00022461,2]
[377943672,1754622640656,-525.91,0.00022461,2]
[377943674,1754622640665,-460.0,0.00022461,2]
[377943676,1754622640674,-460.0,0.00022461,2]
[377943678,1754622640683,-460.0,0.00022461,2]
[377943680,1754622640693,-238.79,0.00022461,2]
[377943681,1754622640703,-479.68,0.00022461,2]
[377943682,1754622640714,-460.0,0.00022461,2]
[377943683,1754622640724,-460.0,0.00022461,2]
[377943684,1754622640734,-460.0,0.00022461,2]
[377943685,1754622640743,-460.0,0.00022461,2]
[377943686,1754622640753,-468.25071733,0.00022461,2]
[377943687,1754622640762,-575.32,0.00022461,2]
[377943688,1754622640772,-463.94051164,0.00022461,2]
[377943689,1754622640785,-460.0,0.00022461,2]
[377943690,1754622640795,-688.74,0.00022461,2]
[377943691,1754622640814,-460.0,0.00022462,2]
[377943692,1754622640827,-460.0,0.00022462,2]
[377943693,1754622640836,-462.12,0.00022462,2]
[377943694,1754622640846,-531.27,0.00022464,2]
[377943695,1754622640855,-460.0,0.00022465,2]
[377943696,1754622640865,-460.0,0.00022465,2]
[377943697,1754622640875,-840.77,0.00022465,2]
[377943698,1754622640884,-460.0,0.00022465,2]
[377943699,1754622640898,-460.0,0.00022465,2]
[377943700,1754622640908,-1185.78,0.00022465,2]
[377943701,1754622640917,-172.25,0.0002254,2]
[377943702,1754622640927,-460.0,0.00022633,2]
[377943703,1754622640937,-661.82,0.00022734,2]
[377943704,1754622640946,-522.3,0.00022734,2]
[377943705,1754622640956,-5288.09,0.00022734,2]
[377943706,1754622640967,-460.0,0.00022734,2]
[377943707,1754622640976,-460.0,0.00022734,2]
[377943708,1754622640985,-954.68,0.00022735,2]
[377943709,1754622640995,-525.91,0.00022735,2]
[377943710,1754622641005,-460.0,0.00022735,2]
[377943711,1754622641014,-460.0,0.00022735,2]
[377943712,1754622641023,-460.0,0.00022735,2]
[377943713,1754622641032,-479.68,0.00022735,2]
[377943714,1754622641042,-460.0,0.00022735,2]
[377943715,1754622641051,-161.80202445,0.00022735,2]
[377943716,1754622641060,-460.0,0.00022735,2]
[377943717,1754622641070,-460.0,0.00022735,2]
[377943718,1754622641079,-575.32,0.00022735,2]
[377943719,1754622641088,-460.0,0.00022735,2]
[377943720,1754622641097,-688.74,0.00022735,2]
[377943721,1754622641106,-462.12,0.00022736,2]
[377943722,1754622641116,-531.27,0.00022738,2]
[377943723,1754622641125,-460.0,0.00022739,2]
[377943724,1754622641134,-460.0,0.00022739,2]
[377943725,1754622641145,-840.77,0.00022739,2]
[377943726,1754622641155,-201.82044498,0.00022739,2]
[377943727,1754622641164,-293.01371935,0.00022739,2]
[377943728,1754622641173,-460.0,0.00022739,2]
[377943729,1754622641183,-1185.78,0.00022739,2]
[377943730,1754622641192,-354.51483062,0.00022763,2]
[377943731,1754622641202,-192.0808548,0.0002279,2]
[377943732,1754622641211,-500.0,0.00022794,2]
[377943733,1754622641221,-500.0,0.00022794,2]
[377943734,1754622641230,-500.0,0.00022794,2]
[377943735,1754622641239,-200.0,0.00022794,2]
[377943736,1754622641248,-294.59,0.00022803,10]
[377943737,1754622641259,-245.49,0.00022803,10]
[377943738,1754622641268,-204.57,0.00022803,10]
[377943739,1754622641277,-216.5651299,0.00022813,2]
[377943740,1754622641286,-231.87430077,0.00022813,2]
[377943741,1754622641446,-160.0,0.00022813,2]
[377943742,1754622641455,-160.0,0.00022813,2]
[377943743,1754622641465,-160.0,0.00022813,2]
[377943744,1754622641474,-160.0,0.00022813,2]
[377943745,1754622641483,-160.0,0.00022813,2]
[377943746,1754622641493,-527.68033864,0.00022813,2]
[377943747,1754622641502,-842.78739015,0.00022813,2]
[377943748,1754622641511,-312.16666667,0.00022813,2]
[377943749,1754622641520,-461.45099301,0.00022813,2]
[377943750,1754622641529,-12663.41139009,0.00022813,2]
[377943751,1754622641539,-160.0,0.00022813,2]
[377943752,1754622641548,-215.36146706,0.00022813,2]
[377943753,1754622641557,-160.0,0.00022813,2]
[377943754,1754622641566,-500.55783046,0.00022894,2]
[377943755,1754622641576,-501.29361436,0.00022894,2]
[377943756,1754622641585,-503.68376983,0.00022894,2]
[377943757,1754622641594,-460.0,0.00022907,2]
[377943758,1754622641603,-500.0,0.00022932,2]
[377943759,1754622641613,-501.7952444,0.00022932,2]
[377943760,1754622641623,-233.77652006,0.00022932,2]
[377943761,1754622641633,-500.0,0.00022932,2]
[377943762,1754622641643,-500.0,0.00022932,2]
[377943763,1754622641652,-500.0,0.00022932,2]
[377943764,1754622641662,-436.73348259,0.00022932,2]
[377943765,1754622641671,-500.0,0.00022932,2]
[377943766,1754622641680,-500.0,0.00022944,2]
[377943767,1754622641689,-507.30077775,0.00022944,2]
[377943768,1754622641699,-305.35423632,0.00022947,2]
[377943769,1754622641708,-502.56688181,0.00022947,2]
[377943770,1754622641718,-504.54218763,0.0002295,2]
[377943771,1754622641727,-500.0,0.0002295,2]
[377943772,1754622641737,-500.0,0.0002295,2]
[377943773,1754622641748,-500.0,0.0002295,2]
[377943774,1754622641757,-500.0,0.0002295,2]
[377943775,1754622641767,-500.0,0.0002295,2]
[377943776,1754622641782,-503.0595246,0.00022967,2]
[377943777,1754622641799,-500.0,0.00022967,2]
[377943778,1754622641808,-177.55520164,0.00022967,2]
[377943779,1754622641818,-445.50466618,0.00022967,2]
[377943780,1754622641827,-505.22112379,0.00022967,2]
[377943781,1754622641837,-245.22559311,0.00022967,2]
[377943782,1754622641846,-500.0,0.00022968,2]
[377943783,1754622641856,-305.80391964,0.00022975,2]
[377943784,1754622641866,-500.0,0.00022984,2]
[377943785,1754622641875,-504.27403933,0.00022985,2]
[377943786,1754622641884,-210.94032659,0.00022985,2]
[377943787,1754622641895,-500.0,0.00022985,2]
[377943788,1754622641905,-500.0,0.00022985,2]
[377943789,1754622641914,-877.1,0.00022991,2]
[377943790,1754622641923,-160.0,0.00023,2]
[377943791,1754622641932,-661.82,0.00023008,2]
[377943792,1754622641942,-522.3,0.00023008,2]
[377943793,1754622641951,-5288.09,0.00023008,2]
[377943794,1754622641962,-460.0,0.00023008,2]
[377943795,1754622641971,-460.0,0.00023008,2]
[377943796,1754622641981,-954.68,0.00023009,2]
[377943797,1754622641990,-525.91,0.00023009,2]
[377943798,1754622641999,-460.0,0.00023009,2]
[377943799,1754622642009,-460.0,0.00023009,2]
[377943800,1754622642019,-460.0,0.00023009,2]
[377943801,1754622642028,-479.68,0.00023009,2]
[377943802,1754622642038,-446.67112877,0.00023009,2]
[377943803,1754622642048,-460.0,0.00023009,2]
[377943804,1754622642057,-460.0,0.00023009,2]
[377943805,1754622642066,-575.32,0.00023009,2]
[377943806,1754622642076,-460.0,0.00023009,2]
[377943807,1754622642086,-688.74,0.00023009,2]
[377943808,1754622642096,-462.12,0.0002301,2]
[377943809,1754622642105,-531.27,0.00023012,2]
[377943810,1754622642115,-200.0,0.00023012,15]
[377943811,1754622642124,-300.0,0.00023012,15]
[377943812,1754622642134,-460.0,0.00023013,2]
[377943813,1754622642143,-460.0,0.00023013,2]
[377943814,1754622642153,-840.77,0.00023013,2]
[377943815,1754622642162,-460.0,0.00023013,2]
[377943816,1754622642172,-1185.78,0.00023013,2]
[377943817,1754622642181,-160.0,0.00023123,2]
[377943818,1754622642191,-460.0,0.00023181,2]
[377943819,1754622642200,-877.1,0.00023218,2]
[377943820,1754622642210,-587.62,0.00023281,2]
[377943821,1754622642219,-661.82,0.00023282,2]
[377943822,1754622642229,-522.3,0.00023282,2]
[377943823,1754622642239,-5288.09,0.00023282,2]
[377943824,1754622642247,-460.0,0.00023282,2]
[377943825,1754622642257,-460.0,0.00023282,2]
[377943826,1754622642267,-954.68,0.00023283,2]
[377943827,1754622642277,-525.91,0.00023283,2]
[377943828,1754622642286,-460.0,0.00023283,2]
[377943829,1754622642296,-460.0,0.00023283,2]
[377943830,1754622642305,-460.0,0.00023283,2]
[377943831,1754622642315,-479.68,0.00023283,2]
[377943832,1754622642325,-157.38158005,0.00023283,2]
[377943833,1754622642336,-460.0,0.00023283,2]
[377943834,1754622642346,-575.32,0.00023283,2]
[377943835,1754622642355,-460.0,0.00023283,2]
[377943836,1754622642365,-688.74,0.00023283,2]
[377943837,1754622642374,-462.12,0.00023284,2]
[377943838,1754622642383,-531.27,0.00023286,2]
[377943839,1754622642393,-460.0,0.00023287,2]
[377943840,1754622642402,-460.0,0.00023287,2]
[377943842,1754622642412,-840.77,0.00023287,2]
[377943843,1754622642421,-460.0,0.00023287,2]
[377943844,1754622642430,-1185.78,0.00023287,2]
[377943845,1754622642440,-276.11,0.00023292,2]
[377943846,1754622642450,-1000.0,0.00023342,2]
[377943847,1754622642459,-501.80379117,0.00023342,2]
[377943848,1754622642468,-877.1,0.00023444,2]
[377943849,1754622642477,-151.0,0.00023448,2]
[377943850,1754622642486,-151.0,0.00023448,2]
[377943851,1754622642496,-151.0,0.00023448,2]
[377943852,1754622642506,-151.0,0.00023448,2]
[377943853,1754622642516,-151.0,0.00023448,2]
[377943854,1754622642526,-1500.0,0.00023448,2]
[377943855,1754622642535,-151.0,0.00023448,2]
[377943856,1754622642546,-151.0,0.00023448,2]